[Event "31st MPL National U18G Chess-ch 2022"]
[Site "Pollachi"]
[Date "2022.04.18"]
[Round "1.6"]
[White "Sakthi Vaishnavi A K"]
[Black "Rebecca Jesumarian"]
[Result "0-1"]
[ECO "B52"]
[WhiteElo "1009"]
[BlackElo "1814"]
[Annotator "NA RC"]
[PlyCount "104"]
[EventDate "2022.04.18"]
[EventCountry "IND"]
[SourceTitle "playchess.com"]
[Source "ChessBase"]
[SourceQuality "1"]
[TimeControl "5400+30"]

{[%evp 41,98,-208,-235,-256,-262,-287,-302,-283,-145,32767,-243,-360,-366,32767,32767,32767,32767,32767,32767,-435,-435,-532,-439,-753,-564,-953,-1034,-873,-896,-1129,-1175,-1184,-1181,-1352,-1217,-1196,-1262,-1253,-1226,-1252,-2187,-1486,-1510,-5866,-1397,-6595,-2627,-29983,-29989,-29989,-29991,-29991,-29992,-29992,-29993,-29993,-29994,-29996,-29997]} 1. e4 {[%emt 1:31:00]} c5 {[%emt 0:00:14]} 2. Nf3 {[%emt 0:00:00]} d6 {[%emt 0:00:07]} 3. Bb5+ {[%emt 0:00:00]} Bd7 {[%emt 0:00:09]} 4. Bxd7+ {[%emt 0:00:00]} Qxd7 {[%emt 0:00:08]} 5. O-O {[%emt 0:00:00]} Nc6 {[%emt 0:00:46]} 6. c3 {[%emt 0:00:00]} Nf6 {[%emt 0:00:50]} 7. Re1 {[%emt 0:00:00]} e6 {[%emt 0:02:05]} 8. d4 {[%emt 0:00:00]} cxd4 {[%emt 0:00:37]} 9. cxd4 {[%emt 0:00:00]} d5 {[%emt 0:00:17]} 10. e5 {[%emt 0:00:00]} Ne4 {[%emt 0:00:14]} 11. a3 {[%emt 0:00:00]} Na5 {[%emt 0:02:27]} 12. Nbd2 {[%emt 0:00:00]} Nxd2 {[%emt 0:00:42]} 13. Bxd2 {[%emt 0:00:00]} Nc4 {[%emt 0:00:25]} 14. Bc3 {[%emt 0:00:00]} Be7 {[%emt 0:01:30]} 15. Nd2 {[%emt 0:00:00]} Rc8 {[%emt 0:00:50]} 16. Nxc4 {[%emt 0:00:00]} Rxc4 {[%emt 0:00:12]} 17. Rc1 {[%emt 0:00:00]} O-O {[%emt 0:00:17]} 18. Qd2 {[%emt 0:00:00]} Rfc8 {[%emt 0:02:42]} 19. Qe3 {[%emt 0:00:00]} Qb5 {[%emt 0:02:20]} 20. Rc2 {[%emt 0:00:00]} Qb3 {[%emt 0:02:38]} 21. Rec1 {[%emt 0:00:00]} (21. Rd2 $142) 21... b5 {[%emt 0:01:21]} 22. h3 {[%emt 0:00:00]} h6 {[%emt 0:02:12]} 23. Re2 {[%emt 0:00:00] [#]} Bxa3 $1 {[%emt 0:11:37]} 24. Ra1 {[%emt 0:00:00]} Ra4 {[%emt 0:00:34]} 25. Rc1 {[%emt 0:05:47] [#]} Bf8 $1 {[%emt 0:01:35]} 26. Bd2 {[%emt 0:01:04]} Qxe3 {[%emt 0:00:12]} ({Wrong is} 26... Rxc1+ $2 27. Bxc1 Qd1+ 28. Re1 Qxd4 29. Qxd4 Rxd4 30. Be3 $19) 27. fxe3 {[%emt 0:00:36]} Rxc1+ {[%emt 0:00:53]} 28. Bxc1 {[%emt 0:00:12]} Rc4 {[%emt 0:00:16]} 29. Re1 {[%emt 0:00:28]} Rc2 {[%emt 0:00:17]} 30. Rd1 {[%emt 0:01:10]} a5 {[%emt 0:00:31]} 31. Bd2 {[%emt 0:01:51]} b4 {[%emt 0:00:12]} 32. Be1 {[%emt 0:00:26]} (32. b3 $142 a4 33. bxa4) 32... a4 {[%emt 0:01:50]} 33. Ra1 {[%emt 0:00:26]} a3 {[%emt 0:00:10]} 34. bxa3 {[%emt 0:00:08]} b3 {[%emt 0:01:40]} 35. Kf1 {[%emt 0:01:07]} b2 {[%emt 0:00:05]} 36. Rb1 {[%emt 0:00:06]} Bxa3 {[%emt 0:00:05]} 37. Rxb2 $19 {[%emt 0:01:15]} Bxb2 {[%emt 0:00:14]} 38. Bf2 {[%emt 0:00:22]} Kf8 {[%emt 0:00:40]} 39. Bg3 {[%emt 0:00:14]} Ke8 {[%emt 0:00:10]} 40. h4 {[%emt 0:00:15]} Kd7 {[%emt 0:00:07]} 41. Bf4 {[%emt 0:00:12]} Bc1 {[%emt 0:00:22]} 42. g4 {[%emt 0:00:19]} Kc6 {[%emt 0:00:28]} 43. g5 {[%emt 0:00:11]} hxg5 {[%emt 0:00:07]} 44. Bxg5 {[%emt 0:00:05]} Kb5 {[%emt 0:00:18]} 45. h5 {[%emt 0:00:15]} Kc4 {[%emt 0:00:43]} 46. h6 {[%emt 0:00:11]} gxh6 {[%emt 0:00:08]} 47. Bxh6 {[%emt 0:00:03]} Kd3 {[%emt 0:00:10]} 48. Bf4 {[%emt 0:00:20]} Bxe3 {[%emt 0:00:12]} 49. Bxe3 {[%emt 0:00:12]} Kxe3 {[%emt 0:00:06]} 50. Kg1 {[%emt 0:00:04]} Kf3 {[%emt 0:00:08]} 51. Kh1 {[%emt 0:00:06]} Kg3 {[%emt 0:00:06]} 52. Kg1 {[%emt 0:00:04]} Rc1# {[%emt 0:00:04]} 0-1

[Event "31st MPL National U18G Chess-ch 2022"]
[Site "Pollachi"]
[Date "2022.04.18"]
[Round "1.7"]
[White "Sasvatha A"]
[Black "Shri Shivani G"]
[Result "1/2-1/2"]
[ECO "D02"]
[WhiteElo "1756"]
[BlackElo "1117"]
[Annotator "NA RC"]
[PlyCount "102"]
[EventDate "2022.04.18"]
[EventCountry "IND"]
[SourceTitle "playchess.com"]
[Source "ChessBase"]
[SourceQuality "1"]
[TimeControl "5400+30"]

1. d4 {[%emt 0:00:03]} d5 {[%emt 0:00:10]} 2. Nf3 {[%emt 0:00:07]} Nf6 {[%emt 0:00:14]} 3. c3 {[%emt 0:00:17]} e6 {[%emt 0:02:14]} 4. Bf4 {[%emt 0:01:01]} c5 {[%emt 0:00:27]} 5. e3 {[%emt 0:00:56]} Nc6 {[%emt 0:00:32]} 6. Be2 {[%emt 0:01:14]} Bd6 {[%emt 0:01:03]} 7. Bxd6 {[%emt 0:04:31]} Qxd6 {[%emt 0:00:13]} 8. O-O {[%emt 0:00:25]} O-O {[%emt 0:01:09]} 9. Nbd2 {[%emt 0:03:21]} b6 {[%emt 0:10:01]} 10. Bb5 {[%emt 0:10:43]} Bb7 {[%emt 0:04:58]} 11. Bxc6 {[%emt 0:12:37]} Bxc6 {[%emt 0:01:33]} 12. Ne5 {[%emt 0:00:29]} Nd7 {[%emt 0:02:45]} 13. Nxd7 {[%emt 0:00:43]} Qxd7 {[%emt 0:01:37]} 14. f4 {[%emt 0:01:15]} Bb5 {[%emt 0:15:51]} 15. Rf3 {[%emt 0:04:56]} Bd3 {[%emt 0:05:33]} 16. a4 {[%emt 0:05:29]} Rac8 {[%emt 0:06:36]} 17. Rh3 {[%emt 0:08:15]} f6 {[%emt 0:13:03]} 18. Rg3 {[%emt 0:16:44]} Qc7 {[%emt 0:08:59]} 19. Qg4 {[%emt 0:11:09]} Bf5 {[%emt 0:02:16]} 20. Qf3 {[%emt 0:16:15]} Qd6 {[%emt 0:03:33]} 21. Qf2 {[%emt 0:01:43]} e5 {[%emt 0:03:58]} 22. dxe5 {[%emt 0:06:02]} fxe5 {[%emt 0:00:54]} 23. Rf3 {[%emt 0:00:00]} Be4 {[%emt 0:08:03]} 24. fxe5 {[%emt 0:00:00]} Qxe5 {[%emt 0:00:54]} 25. Rf4 {[%emt 0:00:00]} g5 {[%emt 0:03:16]} 26. Rxf8+ {[%emt 0:00:00]} Rxf8 {[%emt 0:00:04]} 27. Qe2 {[%emt 0:00:00]} Re8 {[%emt 0:01:05]} 28. Re1 {[%emt 0:00:00]} Bg6 {[%emt 0:01:15]} 29. Nf3 {[%emt 0:00:23]} Qe7 {[%emt 0:00:51]} 30. Qd2 {[%emt 0:03:37]} Be4 {[%emt 0:00:17]} 31. Re2 {[%emt 0:00:50]} Qf6 {[%emt 0:01:02]} 32. Rf2 {[%emt 0:00:30]} Qe7 {[%emt 0:00:43]} 33. Qe2 {[%emt 0:01:43]} Bg6 {[%emt 0:00:41]} 34. Qd1 {[%emt 0:01:34]} Be4 {[%emt 0:00:57]} 35. Ne1 {[%emt 0:00:31]} Qe5 {[%emt 0:00:33]} 36. Qd2 {[%emt 0:00:18]} Bg6 {[%emt 0:00:22]} 37. Nf3 {[%emt 0:00:08]} Qf5 {[%emt 0:00:38]} 38. Rf1 {[%emt 0:01:03]} Bf7 {[%emt 0:00:36]} 39. e4 {[%emt 0:01:21]} dxe4 {[%emt 0:00:31]} 40. Nxg5 {[%emt 0:00:25]} e3 {[%emt 0:00:19]} 41. Qe2 {[%emt 0:01:05]} Qxg5 {[%emt 0:00:09]} 42. h3 {[%emt 0:00:09]} Rd8 {[%emt 0:00:33]} 43. Qf3 {[%emt 0:00:10]} Bd5 {[%emt 0:00:30]} 44. Qe2 {[%emt 0:00:07]} Be4 {[%emt 0:00:32]} 45. Qc4+ {[%emt 0:00:17]} Qd5 {[%emt 0:00:21]} 46. Qe2 {[%emt 0:00:06]} Qd2 {[%emt 0:00:28]} 47. Qg4+ {[%emt 0:00:48]} Bg6 {[%emt 0:00:14]} 48. Qe6+ {[%emt 0:00:08]} Kg7 {[%emt 0:00:21]} 49. Qe7+ {[%emt 0:00:06]} Kg8 {[%emt 0:00:55]} 50. Qe6+ {[%emt 0:03:13]} Kg7 {[%emt 0:00:14]} 51. Qe7+ {[%emt 0:00:04]} Kg8 {[%emt 0:00:14]} 1/2-1/2

[Event "31st MPL National U18G Chess-ch 2022"]
[Site "Pollachi"]
[Date "2022.04.18"]
[Round "2.1"]
[White "Saniya Rafique Tadavi"]
[Black "Jyothsna L"]
[Result "0-1"]
[ECO "B00"]
[WhiteElo "1298"]
[BlackElo "2052"]
[Annotator "TA"]
[PlyCount "58"]
[EventDate "2022.04.18"]
[EventCountry "IND"]
[SourceTitle "playchess.com"]
[Source "ChessBase"]
[SourceQuality "1"]
[TimeControl "5400+30"]

{[%evp 11,58,34,41,-5,60,6,5,-29,21,16,24,24,21,-16,-12,-15,-18,-15,-10,-8,-14,-14,-13,-141,0,-98,-115,-105,-61,-128,-112,-435,-417,-462,-466,-592,-382,-864,-825,-1546,-1509,-1468,-1414,-1433,-1337,-1410,-1409,-1263,-1114]} 1. e4 {[%emt 0:00:06]} e6 {[%emt 0:01:25]} 2. d4 {[%emt 0:00:11]} b6 {[%emt 0:00:02]} 3. Nc3 {[%emt 0:00:28]} Bb7 {[%emt 0:00:03]} 4. Nf3 {[%emt 0:00:50]} Bb4 {[%emt 0:01:10]} 5. Bd3 {[%emt 0:00:25]} Nf6 {[%emt 0:00:42]} 6. Qe2 {[%emt 0:00:58]} d5 {[%emt 0:00:33]} 7. e5 {[%emt 0:02:26] B00: Queen's Fianchetto Defence, Nimzowitsch Defence.} (7. exd5 $14 Nxd5 8. Bd2) 7... Nfd7 {[%emt 0:00:13]} (7... Ne4 $1 $11 8. Bd2 (8. Bxe4 $2 dxe4 9. Ng5 Qxd4 $17) 8... Nxd2 9. Qxd2 O-O) 8. a3 {[%emt 0:00:31]} ({White should play} 8. Ng5 $14) 8... Be7 $11 {[%emt 0:02:46] [#]} 9. h4 $146 {[%emt 0:05:49] The position is equal.} ({Predecessor:} 9. Nd1 c5 10. c3 Nc6 11. O-O Qc7 12. b4 O-O 13. Bf4 Rfc8 14. Ne3 a6 15. Bg3 cxd4 16. cxd4 {1-0 (29) Postupa,P (1944)-Jirousek,T (1737) Ricany 2018}) 9... h6 {[%emt 0:17:45] Inhibits Ng5.} (9... c5 $142 $1) 10. Nd1 {[%emt 0:01:35]} c5 {[%emt 0:04:07]} 11. c3 {[%emt 0:00:20]} Qc8 {[%emt 0:08:06]} 12. g4 {[%emt 0:24:00]} Ba6 {[%emt 0:19:28]} 13. g5 {[%emt 0:00:55]} Bxd3 {[%emt 0:02:15]} 14. Qxd3 {[%emt 0:00:12]} hxg5 {[%emt 0:00:40]} 15. Bxg5 {[%emt 0:00:26]} Qa6 {[%emt 0:03:07]} 16. Qd2 {[%emt 0:00:34] [#] Strongly threatening Bxe7.} Nc6 {[%emt 0:05:08]} 17. h5 {[%emt 0:05:30]} (17. Bxe7 $11 {remains equal.} Nxe7 18. Ne3) 17... O-O-O {[%emt 0:09:16]} (17... cxd4 $17 18. cxd4 Bxg5 19. Nxg5 Rc8) 18. Rb1 {[%emt 0:05:11]} (18. Bxe7 $11 Nxe7 19. Ne3) 18... f6 $17 {[%emt 0:04:39]} 19. exf6 {[%emt 0:05:03]} gxf6 $40 {[%emt 0:01:17][%mdl 128] Black has some attack.} (19... Bxf6 20. b4 $11) 20. Bh6 {[%emt 0:04:43]} (20. Be3 $1 $15) 20... Rdg8 {[%emt 0:02:40][%cal Oh8h6] aiming for ...Rxh6!} 21. Nh4 $2 {[%emt 0:11:52][%mdl 8192] White does not recover from this.} (21. Be3 $17 {is tougher.}) 21... Bf8 {[%emt 0:03:38]} 22. Bxf8 {[%emt 0:00:39]} Rxh5 {[%emt 0:05:09][%cal Bh8h5,Bh5h4,Bh4e4,Be4e3][%mdl 32]} ({Not} 22... Rxf8 23. Ng6 $16) (22... Nxf8 23. Nf3 $15) 23. Qf4 {[%emt 0:04:09][%cal Of4d6]} Rxf8 {[%emt 0:01:33]} 24. Rg1 $2 {[%emt 0:00:36]} (24. Qd6 Na5 25. Ne3) 24... e5 $19 {[%emt 0:03:09] Black is clearly winning.} 25. dxe5 {[%emt 0:05:37]} Ncxe5 {[%emt 0:00:35] ...Nd3+ is the strong threat.} 26. Kd2 {[%emt 0:03:46] [#]} Rxh4 $1 {[%emt 0:00:23][%mdl 512]} 27. Qf5 {[%emt 0:00:12] Against Qd3+} (27. Qg3 Rg4) 27... Re4 {[%emt 0:01:25] ( -> ...Qe2+)} 28. Ne3 {[%emt 0:02:04]} Qd3+ {[%emt 0:00:15]} 29. Kc1 {[%emt 0:00:58]} Rxe3 {[%emt 0:03:31] Weighted Error Value: White=0.94/Black=0.27 (precise)} 0-1

[Event "31st MPL National U18G Chess-ch 2022"]
[Site "Pollachi"]
[Date "2022.04.18"]
[Round "2.2"]
[White "Bhagyashree Patil"]
[Black "Keerthana B"]
[Result "1-0"]
[ECO "B92"]
[WhiteElo "1974"]
[BlackElo "1311"]
[Annotator "TA"]
[PlyCount "111"]
[EventDate "2022.04.18"]
[EventCountry "IND"]
[SourceTitle "playchess.com"]
[Source "ChessBase"]
[SourceQuality "1"]
[TimeControl "5400+30"]

{[%evp 14,111,0,0,5,7,6,0,20,12,20,30,39,20,31,27,22,38,48,-2,13,16,27,0,159,76,92,89,118,126,121,112,120,105,110,101,100,99,108,109,120,66,97,95,118,86,106,84,102,68,93,93,94,100,87,62,69,61,307,99,29993,29994,29994,364,543,543,539,533,462,204,199,185,279,197,304,224,267,267,254,129,305,6,13,13,277,217,209,209,574,563,553,537,831,812,1483,1962,1787,1817,1524,870]} 1. e4 {[%emt 0:00:10]} c5 {[%emt 0:00:06]} 2. Nf3 {[%emt 0:00:04]} d6 {[%emt 0:00:09]} 3. d4 {[%emt 0:00:04]} cxd4 {[%emt 0:00:05]} 4. Nxd4 {[%emt 0:00:02]} Nf6 {[%emt 1:32:10]} 5. Nc3 {[%emt 0:00:04]} a6 {[%emt 0:00:00]} 6. Be2 {[%emt 0:00:04]} e5 {[%emt 0:00:00]} 7. Nf3 {[%emt 0:00:03][%cal Bd4f3,Bf3d2,Bd2c4][%mdl 32]} Be7 {[%emt 0:00:00]} 8. O-O {[%emt 0:00:08]} Nbd7 {[%emt 0:02:00] B92: Sicilian Najdorf: 6 Be2.} 9. a4 {[%emt 1:34:21]} O-O {[%emt 0:00:00] [#]} 10. b3 $146 {[%emt 0:00:00]} ({Predecessor:} 10. a5 Nc5 11. Re1 Qc7 12. Bg5 Nfxe4 13. Nxe4 Nxe4 14. Bxe7 Qxe7 15. Bxa6 Nxf2 16. Kxf2 Rxa6 17. b4 Rc6 18. Qd3 Be6 19. Rac1 Rfc8 20. c3 Bc4 21. Qf5 Be6 22. Qd3 Bc4 23. Qf5 Be6 24. Qd3 {½-½ (24) Vollmer,S (1711)-Hilton,S (1700) FICGS email 2020}) 10... Nc5 {[%emt 0:00:00] The position is equal.} 11. Nd2 {[%emt 0:00:00]} b6 {[%emt 0:00:00]} 12. f3 {[%emt 0:01:30]} d5 {[%emt 0:00:00] Inhibits Nc4.} 13. exd5 {[%emt 0:00:30]} Nxd5 {[%emt 0:00:00]} 14. Nxd5 {[%emt 0:00:00]} ({Don't play} 14. Nde4 Nxc3 15. Nxc3 Be6 $15) 14... Qxd5 {[%emt 0:00:00]} 15. Nc4 {[%emt 0:00:00]} Qe6 {[%emt 0:00:00]} 16. Be3 {[%emt 0:00:00]} (16. Bb2 $14) 16... Bb7 {[%emt 0:00:00]} 17. Qe1 {[%emt 0:00:00]} Rfe8 {[%emt 0:00:00]} 18. Qf2 {[%emt 0:00:00]} Bd5 $2 {[%emt 0:00:00]} ({Black should play} 18... f5 $11) 19. Rfd1 {[%emt 0:00:00]} ({White should try} 19. a5) 19... Rad8 {[%emt 0:00:00]} 20. a5 $1 {[%emt 0:00:00]} Bxc4 {[%emt 0:00:00]} 21. Bxc4 {[%emt 0:00:00]} Qc6 {[%emt 0:00:00]} 22. axb6 {[%emt 0:00:00]} Qxb6 {[%emt 0:00:00] [#]} 23. Bxa6 $1 {[%emt 0:00:00][%mdl 512] This bishop pair is nice.} Rxd1+ {[%emt 0:00:00]} (23... Qxa6 24. Bxc5) 24. Rxd1 {[%emt 0:00:00]} Qxa6 {[%emt 0:00:00]} 25. Bxc5 {[%emt 0:00:00]} Bxc5 {[%emt 0:00:00]} 26. Qxc5 $16 {[%emt 0:00:00][%mdl 4096] Endgame KQR-KQR} Qe2 {[%emt 0:00:00]} 27. Rf1 {[%emt 0:00:00]} ({Better is} 27. Ra1 $16) 27... h6 {[%emt 0:00:00]} 28. Qf2 {[%emt 0:00:00]} Qb5 {[%emt 0:00:00]} 29. Rd1 {[%emt 0:00:00]} f5 {[%emt 0:00:00]} 30. Qe3 {[%emt 0:00:00]} e4 {[%emt 0:00:00][%cal Of5f4]} 31. f4 {[%emt 0:00:00]} Rb8 {[%emt 0:00:00]} 32. h3 {[%emt 0:00:00]} Rb6 {[%emt 0:00:00]} 33. Rd4 {[%emt 0:00:00]} Kh7 {[%emt 0:00:00]} 34. Rc4 {[%emt 0:00:00] Prevents Qc5.} Rd6 {[%emt 0:00:00]} 35. Kh2 {[%emt 0:00:00]} Rd5 $2 {[%emt 0:13:30] [#]} (35... Rd1 $14) 36. Rc7 $2 {[%emt 0:00:00]} (36. Rxe4 $1 $18 {[%mdl 512] And now c4 would win.} Qc5 37. c4 $1 fxe4 38. Qxe4+ Rf5 39. b4) 36... Qf1 {[%mdl 8192]} (36... Qa5 $16 37. Rc6 Qb4) 37. Qg3 {[%emt 0:00:00][%csl Gc7][%cal Rg3g7]} Qa1 {[%emt 0:00:00]} 38. Rc6 $2 {[%emt 0:00:00]} (38. c3 {mates} Qxc3 39. Qxc3 Rd7 40. Rxd7 Kg6 41. Qxg7+ Kh5 42. g4+ fxg4 43. Qxg4#) 38... g5 {[%emt 0:00:00]} (38... Kh8 $142 39. Qg6 Rd8 40. Qxf5 e3) 39. fxg5 $18 {[%emt 0:00:00] White threatens g6+ and mate.} Qe5 {[%emt 0:00:00] White must now prevent ...f4.} 40. Qxe5 {[%emt 0:00:00]} Rxe5 {[%emt 0:00:00] KR-KR} 41. g6+ {[%emt 0:00:00]} (41. Rxh6+ $142 Kg7 42. Kg1) 41... Kg7 {[%emt 0:00:00]} 42. Kg1 {[%emt 0:00:00]} ({Wrong is} 42. Kg3 $2 e3 43. Kf4 e2 $1 {[%mdl 512]} 44. Kxe5 e1=Q+ 45. Kxf5 Qf1+ 46. Ke5 Qxg2 47. Rc7+ Kxg6 $19) 42... Rd5 {[%emt 0:00:00]} (42... f4 $142 43. Kf1 Ra5) 43. Kf1 {[%emt 0:00:00]} Rd2 {[%emt 0:00:00]} (43... f4 $142 44. Re6 e3) 44. b4 {[%emt 0:00:00]} Rd1+ {[%emt 0:00:00]} 45. Ke2 {[%emt 0:00:00]} Rb1 {[%emt 0:00:00] [#]} 46. c3 {[%emt 0:00:00]} (46. g4 $1 $18 {[%cal Rg4f5]} fxg4 47. hxg4 Rxb4 48. Ke3) 46... f4 {[%emt 0:00:00] [#]} (46... Rb2+ $16 {keeps fighting.} 47. Ke3 Rxg2) 47. Re6 $2 {[%emt 0:00:00]} (47. Rc4 $1 $18 {[%cal Rc4e4]}) 47... Rb2+ $11 {[%emt 0:00:00]} 48. Kf1 {[%emt 0:00:00]} e3 {[%emt 0:00:00][%mdl 8192]} (48... Rb1+ $11 {and Black is okay.} 49. Kf2 Rb2+ 50. Ke1 Rb1+ 51. Ke2 Rb2+ 52. Kf1 Rb1+ 53. Kf2 Rb2+ 54. Kg1 Rb1+ 55. Kh2 e3) 49. h4 {[%emt 0:00:00] h5 is the strong threat.} h5 {[%emt 0:00:00]} 50. g3 $1 {[%emt 0:00:00][%cal Bg2g3,Bg3f4,Bf4f5][%mdl 32]} Rb1+ $2 {[%emt 0:00:00]} (50... Rh2 51. b5 (51. gxf4 Rxh4 52. f5 Rf4+ 53. Ke2 Rxf5 $18) 51... fxg3 52. Rxe3 Rxh4) 51. Kg2 $18 {[%emt 0:00:00] White is clearly winning.} Rb2+ {[%emt 0:00:00]} 52. Kh3 {[%emt 0:00:00]} e2 {[%emt 0:00:00] ( -> ...f3)} 53. gxf4 {[%emt 0:00:00] Hoping for f5.} Rc2 {[%emt 0:00:00]} 54. f5 {[%emt 0:00:00]} Rxc3+ {[%emt 0:00:00]} 55. Kg2 {[%emt 0:00:00]} Kh6 {[%emt 0:00:00]} 56. Re7 {[%emt 0:00:00] Weighted Error Value: White=0.48/Black=0.84} 1-0

[Event "31st MPL National U18G Chess-ch 2022"]
[Site "Pollachi"]
[Date "2022.04.18"]
[Round "2.3"]
[White "Sevitha Viju M"]
[Black "Kheerthi Ganta"]
[Result "1-0"]
[ECO "A11"]
[WhiteElo "1304"]
[BlackElo "2011"]
[Annotator "TA"]
[PlyCount "63"]
[EventDate "2022.04.18"]
[EventCountry "IND"]
[SourceTitle "playchess.com"]
[Source "ChessBase"]
[SourceQuality "1"]
[TimeControl "5400+30"]

{[%evp 9,63,-22,-30,-41,-16,-26,-34,-30,-29,-34,-6,-102,-65,-45,-25,-34,-18,-22,-14,-19,13,0,14,12,25,0,0,0,146,164,159,158,231,216,635,607,610,575,1342,1075,29977,29968,3225,2958,1846,1222,29989,1139,994,483,29991,29992,29992,29993,29994,29995]} 1. Nf3 {[%emt 0:04:23]} d5 {[%emt 0:01:05]} 2. g3 {[%emt 0:02:08]} Nf6 {[%emt 0:00:54]} 3. Bg2 {[%emt 0:00:18]} c6 {[%emt 0:00:53]} 4. c4 {[%emt 0:00:22]} dxc4 {[%emt 0:01:39]} 5. Na3 {[%emt 0:00:23]} b5 {[%emt 0:01:32]} 6. O-O {[%emt 0:01:56] A11: English Opening: 1...c6.} Bb7 {[%emt 0:02:32]} 7. b3 {[%emt 0:01:31]} cxb3 {[%emt 0:01:36]} 8. Qxb3 {[%emt 0:00:11] Black is slightly better.} e6 {[%emt 0:01:49]} 9. d4 {[%emt 0:02:47][%cal Oa3c4]} Be7 {[%emt 0:01:56]} 10. Bb2 {[%emt 0:01:42]} (10. Nc4 $11 {remains equal.}) 10... O-O {[%emt 0:00:50]} 11. Ne5 {[%emt 0:03:14][%cal Oa3b5]} a6 {[%emt 0:00:42]} 12. Rac1 {[%emt 0:01:56] [#]} Nd5 $146 {[%emt 0:00:56][%cal Bf6d5,Bd5b6,Bb6a4][%mdl 32]} ({Predecessor:} 12... Qd6 13. Nd3 Ra7 14. Nc5 Ba8 15. e4 Qd8 16. Rfd1 Nbd7 17. Nc2 Nxc5 18. dxc5 Rd7 {0-1 (36) Lukac,J (2089)-Dovzik,J (2411) Slovakia 2000}) 13. e4 {[%emt 0:01:48]} Nb6 {[%emt 0:00:18]} 14. Rfd1 {[%emt 0:03:50]} Na4 {[%emt 0:03:38]} 15. Ba1 {[%emt 0:03:27]} Qe8 {[%emt 0:03:31] [#]} 16. Nac4 $1 {[%emt 0:05:48] Black should prevent d5.} Nd7 {[%emt 0:08:33]} (16... a5 17. Ne3) 17. Nxd7 {[%emt 0:02:23]} (17. Na5 $5 {[%cal Ra5b7]} Nxe5 18. Nxb7 $11) 17... Qxd7 {[%emt 0:00:23]} 18. Na5 {[%emt 0:01:55] d5 is the strong threat.} Qc7 {[%emt 0:01:43]} (18... Rac8 $11) 19. Nxb7 $16 {[%emt 0:00:21]} Qxb7 {[%emt 0:00:08] [#]} 20. d5 $1 {[%emt 0:01:15]} Rac8 {[%emt 0:05:12]} (20... Rad8 $16 21. Rxc6 (21. dxc6 Qc7 $14) 21... Rc8) 21. dxe6 $18 {[%emt 0:00:24]} f6 {[%emt 0:02:59]} (21... Qb6 22. e5 (22. Rd7 Rc7 $18) 22... c5) 22. Rd7 {[%emt 0:01:42]} Rc7 {[%emt 0:00:12]} 23. e5 {[%emt 0:03:01]} fxe5 {[%emt 0:02:56] [#]} 24. Rxc6 $1 {[%emt 0:01:36][%mdl 512]} Rxd7 {[%emt 0:02:01]} (24... Rxc6 25. Rxb7) 25. exd7+ {[%emt 0:00:08]} Kh8 {[%emt 0:00:08]} 26. Qe6 {[%emt 0:09:28]} Qa7 {[%emt 0:03:12]} 27. Qxe5 {[%emt 0:01:12][%csl Ga1][%cal Re5g7] Active counter play!} Qxf2+ {[%emt 0:01:43]} 28. Kh1 {[%emt 0:00:06][%csl Ga1][%cal Re5g7]} Qf7 {[%emt 0:01:11]} 29. Qe6 {[%emt 0:00:18]} (29. Bd4 $142 Bd8 30. Rxa6) 29... Qh5 {[%emt 0:03:57] [#]} (29... Bd8 $18 30. Bd4 a5 31. Qxf7 Rxf7) 30. Bxg7+ $1 {[%emt 0:00:45][%mdl 512] White mates.} Kxg7 {[%emt 0:00:42]} 31. Qxe7+ {[%emt 0:00:04]} Rf7 {[%emt 0:00:27]} 32. d8=Q {[%emt 0:00:12] Weighted Error Value: White=0.34/Black=1.13} 1-0